fUSD/lending_fUSD_20240825
["ID","MTS","AMOUNT","RATE_DAILY","PERIOD"]
[335863451,1724544005791,382.32,0.00025,60]
[335863452,1724544042624,1473.1582577,0.0001,2]
[335863453,1724544045743,800.0,9.987e-05,2]
[335863454,1724544046134,963.3905499,0.00010009,2]
[335863455,1724544225734,155.22526092,0.00010009,2]
[335863456,1724544238369,168.14,9.997e-05,2]
[335863457,1724544261960,169.48383418,9.926e-05,2]
[335863458,1724544285270,155.0,0.00010009,2]
[335863460,1724544306133,541.82884039,9.997e-05,2]
[335863466,1724544427702,197.38,9.978e-05,2]
[335863470,1724544518018,723.1767537,0.00010009,2]
[335863472,1724544563112,333.27,8.219e-05,2]
[335863473,1724544577762,250.0,9.966e-05,2]
[335863475,1724544619438,2250.36,9.979e-05,2]
[335863492,1724544631590,-187.11,0.00010047,2]
[335863493,1724544631601,-200.0,0.00010305,2]
[335863494,1724544631610,-2846.91532458,0.00010394,2]
[335863495,1724544631619,-155.0,0.00010471,2]
[335863496,1724544631629,-155.0,0.00010471,2]
[335863497,1724544631640,-333.27,0.00010475,2]
[335863498,1724544631650,-1040.25201661,0.00010713,2]
[335863499,1724544631662,-2794.68858354,0.00010713,2]
[335863500,1724544631671,-300.0,0.0001084,2]
[335863501,1724544631681,-252.95378215,0.00010841,2]
[335863502,1724544631697,-295.04621785,0.00010841,2]
[335863503,1724544631706,-101.603728,0.00010841,2]
[335863504,1724544631722,-920.02216312,0.00010841,2]
[335863505,1724544631734,-875.37410888,0.00010841,2]
[335863506,1724544631744,-1154.0,0.00010841,2]
[335863507,1724544631753,-5113.295,0.00010841,2]
[335863508,1724544631763,-334.141,0.00010841,2]
[335863509,1724544631773,-158.24348016,0.00010861,2]
[335863510,1724544631782,-155.0,0.00010861,2]
[335863511,1724544631792,-306.30964202,0.00010862,2]
[335863512,1724544631801,-257.88535117,0.00010862,2]
[335863513,1724544631811,-378.65971219,0.00010862,2]
[335863514,1724544631821,-432.47832469,0.00010888,2]
[335863515,1724544631831,-303.67817076,0.00010888,2]
[335863516,1724544631840,-195.13980607,0.00010888,2]
[335863517,1724544631850,-1902.67203,0.0001089,2]
[335863518,1724544631860,-395.98637762,0.0001089,2]
[335863519,1724544631869,-2962.9956,0.0001089,2]
[335863520,1724544631879,-29034.29642827,0.0001089,2]
[335863521,1724544631895,-19154.45097173,0.0001089,2]
[335863522,1724544631905,-1377.6486,0.0001089,2]
[335863523,1724544631915,-670.8991,0.0001089,2]
[335863524,1724544631924,-2500.0,0.0001089,2]
[335863525,1724544631933,-21973.286223,0.000109,2]
[335863526,1724544631943,-179.62485198,0.000109,2]
[335863527,1724544631953,-150.0,0.000109,2]
[335863528,1724544631962,-150.0,0.000109,2]
[335863529,1724544631972,-172.94506463,0.000109,2]
[335863530,1724544631981,-2319.30576134,0.000109,2]
[335863531,1724544631991,-809.0,0.0001092,2]
[335863532,1724544632000,-447.0,0.0001092,2]
[335863533,1724544632010,-556.0,0.0001092,2]
[335863534,1724544632019,-1138.0,0.0001092,2]
[335863535,1724544632029,-166.37,0.00010959,2]
[335863536,1724544632038,-171.96,0.00010959,2]
[335863537,1724544632048,-164.38,0.00010959,2]
[335863538,1724544632057,-250.0,0.00010959,2]
[335863539,1724544632067,-172.19,0.00010959,2]
[335863540,1724544632077,-155.0,0.00010979,2]
[335863541,1724544632086,-155.0,0.00010979,2]
[335863542,1724544632096,-150.76,0.0001098,2]
[335863543,1724544632105,-500.0,0.00010989,2]
[335863544,1724544632114,-500.0,0.00010989,2]
[335863545,1724544632123,-500.0,0.00010989,2]
[335863546,1724544632133,-500.0,0.00010989,2]
[335863547,1724544632142,-500.0,0.00010989,2]
[335863548,1724544632151,-500.0,0.00010989,2]
[335863549,1724544632162,-305.40800262,0.00010989,2]
[335863550,1724544632172,-500.0,0.00010989,2]
[335863551,1724544632182,-640.17008536,0.00010989,2]
[335863552,1724544632191,-500.0,0.00010989,2]
[335863553,1724544632200,-500.0,0.00010989,2]
[335863554,1724544632210,-500.0,0.00010989,2]
[335863555,1724544632219,-500.0,0.00010989,2]
[335863556,1724544632229,-500.0,0.00010989,2]
[335863557,1724544632238,-500.0,0.00010989,2]
[335863558,1724544632247,-500.0,0.00010989,2]
[335863559,1724544632256,-500.0,0.00010989,2]
[335863560,1724544632266,-500.0,0.00010989,2]
[335863561,1724544632275,-500.0,0.00010989,2]
[335863562,1724544632284,-500.0,0.00010989,2]
[335863563,1724544632293,-500.0,0.00010989,2]
[335863564,1724544632303,-454.6568103,0.00010989,2]
[335863565,1724544632312,-500.0,0.00010989,2]
[335863566,1724544632322,-500.0,0.00010989,2]
[335863567,1724544632331,-500.0,0.00010989,2]
[335863568,1724544632341,-500.0,0.00010989,2]
[335863569,1724544632350,-214.61445423,0.00010989,2]
[335863570,1724544632359,-150.0,0.00010989,2]
[335863571,1724544632369,-197.3256558,0.00010989,2]
[335863572,1724544632378,-14495.75153724,0.0001099,2]
[335863573,1724544632394,-6577.56553854,0.0001099,2]
[335863611,1724544637625,-155.0,0.00010949,2]
[335863612,1724544637637,-500.0,0.00010989,2]
[335863613,1724544637646,-500.0,0.00010989,2]
[335863614,1724544637656,-12696.46405266,0.0001099,2]
[335863615,1724544637667,-100674.54322693,0.0001099,2]
[335863616,1724544637678,-7616.32422675,0.0001099,2]
[335863617,1724544637836,-253.06390173,0.0001099,2]
[335863632,1724544639802,-500.0,0.00010989,2]
[335863633,1724544639812,-500.0,0.00010989,2]
[335863634,1724544639821,-48220.95174034,0.0001099,2]
[335863635,1724544639940,-449.99329049,0.0001099,2]
[335863636,1724544639995,-7161.08668671,0.0001099,2]
[335863637,1724544640007,-834.66999959,0.0001099,2]
[335863638,1724544640018,-321.285,0.0001099,2]
[335863749,1724544642689,-754.74658381,0.0001099,2]
[335863750,1724544642746,-374.72962927,0.0001099,2]
[335863751,1724544643010,-78950.25246162,0.0001099,2]
[335863752,1724544643023,-48993.7860026,0.0001099,2]
[335863956,1724544828399,1050.0,0.0001,2]
[335863958,1724545119165,317.5,8.219e-05,2]
[335863959,1724545199740,199.59983097,9.962e-05,2]
[335863961,1724545545362,5200.0,0.0001,2]
[335863962,1724545546954,270.0323363,0.00010009,2]
[335863963,1724545558481,200.0,0.0001,2]
[335863964,1724545568090,300.0,0.0001,2]
[335863965,1724545711706,318.31,8.219e-05,2]
[335863967,1724545777835,425.84377651,9.962e-05,2]
[335863968,1724545797392,2058.62738527,9.962e-05,2]
[335863969,1724545809740,963.3905499,0.00010009,2]
[335863974,1724545831796,-3786.88,0.00010027,2]
[335863975,1724545831805,-187.11,0.00010038,2]
[335863976,1724545831814,-1000.0,0.00010066,2]
[335863977,1724545831823,-210.83,0.00010106,2]
[335863978,1724545831833,-318.31,0.00010479,2]
[335863979,1724545831842,-150.0,0.000107,2]
[335863980,1724545831851,-150.0,0.000107,2]
[335863981,1724545831860,-426.91,0.000107,2]
[335863982,1724545831870,-300.0,0.00010799,2]
[335863983,1724545831883,-3974.74914329,0.00010799,2]
[335863984,1724545831892,-113.86283956,0.000108,2]
[335863985,1724545831903,-158.77716044,0.000108,2]
[335863986,1724545831916,-1018.9,0.000108,2]
[335863987,1724545831925,-421.55,0.000108,2]
[335863988,1724545831934,-365.59,0.000108,2]
[335863989,1724545831943,-150.0,0.000108,2]
[335863990,1724545831955,-426.91,0.000108,2]
[335863991,1724545831965,-150.0,0.000108,2]
[335863992,1724545831975,-150.0,0.000108,2]
[335863993,1724545831985,-150.0,0.000108,2]
[335863994,1724545831996,-150.0,0.000108,2]
[335863995,1724545832004,-378.32803703,0.000108,2]
[335863996,1724545832016,-48.58196297,0.000108,2]
[335863997,1724545832026,-150.0,0.000108,2]
[335863998,1724545832035,-426.91,0.000108,2]
[335863999,1724545832045,-300.0,0.000108,2]
[335864000,1724545832054,-426.91,0.000108,2]
[335864001,1724545832063,-426.91,0.000108,2]
[335864002,1724545832073,-426.91,0.000108,2]
[335864003,1724545832082,-214.69,0.000108,2]
[335864004,1724545832092,-305.0,0.00010862,2]
[335864005,1724545832101,-1585.56003,0.0001088,2]
[335864006,1724545832110,-2599.8226,0.0001089,2]
[335864007,1724545832119,-1528.9829,0.0001089,2]
[335864008,1724545832128,-971.97280212,0.0001089,2]
[335864009,1724545832174,-431.47799788,0.0001089,2]
[335864010,1724545832184,-4293.06176499,0.0001089,2]
[335864012,1724545832195,-727.5020417,0.0001089,2]
[335864024,1724545837759,-432.89199331,0.0001089,2]
[335864026,1724545837769,-136.67700219,0.0001089,2]
[335864034,1724545839979,-123.54979781,0.0001089,2]
[335864035,1724545839988,-2363.2839,0.0001089,2]
[335864036,1724545839998,-1125.1539,0.0001089,2]
[335864037,1724545840007,-7500.0,0.00010899,2]
[335864038,1724545840017,-155.0,0.00010899,2]
[335864039,1724545840027,-155.0,0.00010899,2]
[335864040,1724545840037,-279.77226472,0.00010899,2]
[335864041,1724545840047,-426.91,0.000109,2]
[335864042,1724545840056,-426.91,0.000109,2]
[335864043,1724545840066,-282.9,0.000109,2]
[335864044,1724545840075,-160.72172275,0.000109,2]
[335864045,1724545840085,-160.72172275,0.000109,2]
[335864046,1724545840094,-356.95,0.000109,2]
[335864047,1724545840104,-356.95,0.000109,2]
[335864048,1724545840114,-356.95,0.000109,2]
[335864049,1724545840123,-356.95,0.000109,2]
[335864050,1724545840132,-1154.0,0.00010939,2]
[335864051,1724545840142,-556.0,0.00010939,2]
[335864053,1724545840151,-1137.0,0.00010939,2]
[335864055,1724545840162,-809.0,0.00010939,2]
[335864057,1724545840171,-447.0,0.00010939,2]
[335864059,1724545840181,-575.93349574,0.00010949,2]
[335864061,1724545840191,-871.38785124,0.00010949,2]
[335864063,1724545840201,-575.93349574,0.00010949,2]
[335864065,1724545840211,-170.38,0.00010959,2]
[335864067,1724545840220,-166.37,0.00010959,2]
[335864069,1724545840230,-250.0,0.00010959,2]
[335864071,1724545840240,-579.44869358,0.00010979,2]
[335864073,1724545840249,-1518.02409611,0.00010989,2]
[335864075,1724545840259,-506.86134482,0.00010989,2]
[335864077,1724545840268,-500.0,0.00010989,2]
[335864079,1724545840277,-500.0,0.00010989,2]
[335864081,1724545840287,-276.91621574,0.00010989,2]
[335864083,1724545840296,-500.0,0.00010989,2]
[335864085,1724545840306,-500.0,0.00010989,2]
[335864087,1724545840315,-554.57672575,0.00010989,2]
[335864089,1724545840324,-500.0,0.00010989,2]
[335864091,1724545840333,-500.0,0.00010989,2]
[335864093,1724545840343,-500.0,0.00010989,2]
[335864094,1724545840352,-500.0,0.00010989,2]
[335864095,1724545840361,-500.0,0.00010989,2]
[335864096,1724545840370,-500.0,0.00010989,2]
[335864097,1724545840379,-500.0,0.00010989,2]
[335864098,1724545840388,-500.0,0.00010989,2]
[335864099,1724545840397,-500.0,0.00010989,2]
[335864100,1724545840406,-500.0,0.00010989,2]
[335864101,1724545840416,-32937.10252603,0.0001099,2]
[335864102,1724545840431,-480.13790618,0.0001099,2]
[335864103,1724545840442,-2516.77756796,0.0001099,2]
[335864126,1724545842845,-1258.87903905,0.00010899,2]
[335864127,1724545842854,-605.87,0.00010948,2]
[335864128,1724545842864,-257.03900718,0.00010979,2]
[335864129,1724545842877,-155.0,0.00010989,2]
[335864130,1724545842893,-27061.30092111,0.0001099,2]
[335864131,1724545842904,-691.4797114,0.0001099,2]
[335864132,1724545842915,-303.9569571,0.0001099,2]
[335864148,1724545856513,400.0,0.0001,3]
[335864149,1724545858665,200.0,9.991e-05,2]
[335864151,1724546105290,198.45,9.991e-05,2]
[335864152,1724546286973,318.18,8.219e-05,2]
[335864154,1724546360229,211.2188898,0.0001,2]
[335864155,1724546402806,150.0,0.0001,2]
[335864156,1724546406594,647.24,9.969e-05,2]
[335864157,1724546497253,1000.0,9.958e-05,2]
[335864158,1724546595408,208.35,9.968e-05,2]
[335864159,1724546633250,1050.0,0.0001,2]
[335864160,1724546785419,302.27,8.219e-05,2]
[335864161,1724546846514,300.0,0.0001,3]
[335864169,1724547038096,-449.145,0.000101,3]
[335864170,1724547038151,-250.855,0.000101,3]
[335864171,1724547038161,-1100.0,0.000102,3]
[335864172,1724547038172,-1500.0,0.000103,3]
[335864173,1724547038182,-1900.0,0.000104,3]
[335864174,1724547038191,-270.63095683,0.00010471,2]
[335864175,1724547038200,-270.63095683,0.00010471,2]
[335864176,1724547038210,-302.27,0.0001048,2]
[335864177,1724547038219,-300.0,0.00010499,2]
[335864178,1724547038231,-150.0,0.000105,2]
[335864179,1724547038240,-150.0,0.000105,2]
[335864180,1724547038249,-150.0,0.000105,2]
[335864181,1724547038258,-300.0,0.000105,3]
[335864182,1724547038269,-306.47,0.000105,2]
[335864183,1724547038278,-998.72,0.000105,2]
[335864184,1724547038288,-1062.66,0.000105,2]
[335864185,1724547038298,-173.873026,0.00010562,2]
[335864186,1724547038309,-300.0,0.000106,3]
[335864187,1724547038318,-173.873026,0.00010694,2]
[335864188,1724547038329,-300.0,0.000107,3]
[335864189,1724547038339,-300.0,0.000108,3]
[335864190,1724547038349,-173.873026,0.00010826,2]
[335864191,1724547038358,-327.46,0.00010852,2]
[335864192,1724547038368,-1321.30002,0.0001088,2]
[335864193,1724547038378,-209.63202207,0.00010888,2]
[335864194,1724547038387,-155.0,0.00010888,2]
[335864195,1724547038396,-155.0,0.0001089,2]
[335864196,1724547038406,-155.0,0.00010899,2]
[335864197,1724547038416,-3373.5112,0.000109,2]
[335864198,1724547038427,-531.53,0.000109,2]
[335864199,1724547038436,-1023.0,0.000109,3]
[335864200,1724547038445,-226.0,0.0001094,2]
[335864201,1724547038454,-471.70683247,0.00010958,2]
[335864202,1724547038466,-84.29316753,0.00010958,2]
[335864203,1724547038476,-221.467,0.00010958,2]
[335864204,1724547038485,-218.4826236,0.00010958,2]
[335864205,1724547038497,-304.3753764,0.00010958,2]
[335864206,1724547038507,-195.6246236,0.00010958,2]
[335864207,1724547038519,-83.0083764,0.00010958,2]
[335864208,1724547038528,-173.873026,0.00010958,2]
[335864209,1724547038537,-159.38,0.00010959,2]
[335864210,1724547038547,-164.38,0.00010959,2]
[335864211,1724547038556,-2000.0,0.00010959,2]
[335864212,1724547038566,-101.2585976,0.00010959,2]
[335864213,1724547038577,-148.7414024,0.00010959,2]
[335864214,1724547038586,-272.49675554,0.00010989,2]
[335864256,1724547043239,-155.0,0.00010888,2]
[335864257,1724547043249,-227.50324446,0.00010989,2]
[335864258,1724547043258,-500.0,0.00010989,2]
[335864259,1724547043268,-500.0,0.00010989,2]
[335864260,1724547043277,-500.0,0.00010989,2]
[335864261,1724547043286,-500.0,0.00010989,2]
[335864262,1724547043296,-498.80022946,0.00010989,2]
[335864263,1724547043306,-4746.58072423,0.0001099,2]
[335864264,1724547043334,-270.63095683,0.00010471,2]
[335864265,1724547043344,-179.40427317,0.0001099,2]
[335864266,1724547043355,-1336.92395265,0.0001099,2]
[335864284,1724547045922,-4954.3148262,0.0001099,2]
[335864286,1724547045934,-4385.36946977,0.0001099,2]
[335864287,1724547045946,-3822.15735879,0.0001099,2]
[335864288,1724547045979,-11067.42674182,0.0001099,2]
[335864289,1724547045990,-8129.68186895,0.0001099,2]
[335864290,1724547046091,-442.79258183,0.0001099,2]
[335864291,1724547046102,-392.00256734,0.0001099,2]
[335864292,1724547046114,-341.79192375,0.0001099,2]
[335864293,1724547046147,-66753.39703524,0.0001099,2]
[335864294,1724547046159,-1082.1872082,0.0001099,2]
[335864295,1724547046168,-21994.26364928,0.0001099,2]
[335864296,1724547046181,-7995.2437069,0.0001099,2]
[335864299,1724547271286,300.58,8.219e-05,2]
[335864315,1724547562913,155.0,9.962e-05,2]
[335864318,1724547588314,800.0,9.921e-05,2]
[335864319,1724547603193,162.71168576,0.0001,2]
[335864322,1724547609952,181.86810677,0.0001,2]
[335864323,1724547625340,187.11,9.912e-05,2]
[335864324,1724547642923,639.31,9.916e-05,2]
[335864326,1724547759271,301.55,8.219e-05,2]
[335864327,1724547787666,169.45597825,9.925e-05,2]
[335864328,1724547972097,259.12,9.918e-05,2]
[335864329,1724548070970,230.9,9.893e-05,2]
[335864330,1724548151056,1487.11199993,0.00010009,2]
[335864331,1724548160423,360.0,9.901e-05,2]
[335864333,1724548206538,1224.56445904,0.00010009,2]
[335864343,1724548229180,150.29,9.918e-05,2]
[335864352,1724548232130,-208.37,0.00010025,2]
[335864353,1724548232140,-160.42004996,0.00010199,2]
[335864354,1724548232199,-139.57995004,0.00010199,2]
[335864355,1724548232209,-300.0,0.00010199,2]
[335864356,1724548232218,-416.68171779,0.000102,3]
[335864357,1724548232230,-859.65573395,0.000102,3]
[335864358,1724548232241,-1370.54708877,0.000102,3]
[335864359,1724548232252,-2573.50724181,0.000102,3]
[335864360,1724548232264,-1975.73388721,0.000102,3]
[335864361,1724548232275,-1003.2257048,0.000102,3]
[335864362,1724548232286,-790.15908962,0.000102,3]
[335864363,1724548232296,-1033.09125361,0.000102,3]
[335864364,1724548232333,-283.8100001,0.000102,3]
[335864365,1724548232344,-844.63596783,0.000102,3]
[335864366,1724548232355,-142.95231451,0.000102,3]
[335864367,1724548232364,-1806.21616352,0.000103,2]
[335864368,1724548232375,-997.3985232,0.000103,2]
[335864369,1724548232385,-4166.5141499,0.000104,5]
[335864370,1724548232399,-1178.81576721,0.000104,5]
[335864371,1724548232414,-676.29250496,0.000104,5]
[335864387,1724548238289,-999.85091991,0.000104,5]
[335864388,1724548238300,-998.03213721,0.000104,5]
[335864389,1724548238462,-580.56000002,0.000104,5]
[335864415,1724548240515,-692.32000001,0.000104,5]
[335864482,1724548243306,-486.18500001,0.000104,5]
[335864486,1724548246163,-1724.42952077,0.000104,5]
[335864487,1724548246172,-54.89368044,0.00010472,2]
[335864488,1724548246183,-246.65631956,0.00010472,2]
[335864489,1724548246193,-356.95,0.000105,2]
[335864490,1724548246202,-175.928013,0.00010562,2]
[335864491,1724548246212,-150.0,0.000106,2]
[335864492,1724548246221,-1059.68063662,0.00010702,2]
[335864493,1724548246230,-150.0,0.00010785,2]
[335864494,1724548246239,-696.25110993,0.00010861,2]
[335864495,1724548246251,-64.28687224,0.00010861,2]
[335864496,1724548246261,-1500.0,0.00010861,2]
[335864497,1724548246271,-366.02830147,0.00010862,2]
[335864498,1724548246280,-600.39886308,0.00010862,2]
[335864499,1724548246289,-150.0,0.00010867,2]
[335864500,1724548246299,-556.0,0.00010878,2]
[335864501,1724548246308,-232.60654,0.0001088,2]
[335864502,1724548246318,-1881.02351463,0.0001089,2]
[335864503,1724548246329,-4102.0604193,0.0001089,2]
[335864504,1724548246363,-1455.39500522,0.0001089,2]
[335864505,1724548246374,-253.90297784,0.0001089,2]
[335864506,1724548246385,-366.62058302,0.0001089,2]
[335864507,1724548246397,-477.69739199,0.0001089,2]
[335864508,1724548246408,-2360.320108,0.0001089,2]
[335864509,1724548246421,-4767.24428852,0.00010899,2]
[335864510,1724548246431,-4767.24428852,0.00010899,2]
[335864511,1724548246440,-4767.24428852,0.00010899,2]
[335864512,1724548246450,-4767.24428852,0.00010899,2]
[335864513,1724548246459,-4767.24428852,0.00010899,2]
[335864514,1724548246469,-155.0,0.00010899,2]
[335864515,1724548246479,-155.0,0.00010899,2]
[335864516,1724548246488,-4767.24428852,0.00010899,2]
[335864517,1724548246498,-4767.24428852,0.00010899,2]
[335864518,1724548246508,-706.95399329,0.000109,2]
[335864519,1724548246519,-4060.29029523,0.000109,2]
[335864520,1724548246529,-179.21298119,0.000109,2]
[335864521,1724548246540,-4588.03130733,0.000109,2]
[335864522,1724548246549,-7022.97,0.000109,2]
[335864523,1724548246559,-150.0,0.000109,2]
[335864524,1724548246569,-150.0,0.000109,2]
[335864525,1724548246581,-150.0,0.000109,2]
[335864526,1724548246590,-150.0,0.000109,2]
[335864527,1724548246600,-193.48826317,0.000109,2]
[335864528,1724548246611,-4767.24428852,0.000109,2]
[335864529,1724548246620,-328.2488375,0.00010949,2]
[335864530,1724548246630,-187.44,0.00010959,2]
[335864531,1724548246640,-250.0,0.00010959,2]
[335864532,1724548246649,-779.07,0.00010959,2]
[335864533,1724548246661,-155.0,0.00010979,2]
[335864534,1724548246671,-5118.98225892,0.0001099,2]
[335864535,1724548246683,-32364.24689292,0.0001099,2]
[335864536,1724548246693,-250.0,0.0001099,2]
[335864537,1724548246703,-200.0,0.0001099,2]
[335864538,1724548246712,-2000.0,0.0001099,2]
[335864539,1724548246722,-200.0,0.0001099,2]
[335864540,1724548246731,-2000.0,0.0001099,2]
[335864541,1724548246741,-200.0,0.0001099,2]
[335864542,1724548246750,-929.92759567,0.0001099,2]
[335864543,1724548246760,-500.0,0.00010997,2]
[335864544,1724548246769,-117.74505538,0.00010997,2]
[335864546,1724548246780,-382.25494462,0.00010997,2]
[335864548,1724548246790,-500.0,0.00010997,2]
[335864550,1724548246800,-436.05628988,0.00010997,2]
[335864551,1724548246809,-500.0,0.00010998,2]
[335864552,1724548246820,-500.0,0.00010998,2]
[335864553,1724548246831,-500.0,0.00010998,2]
[335864554,1724548246841,-151.0,0.00010998,2]
[335864555,1724548246851,-151.0,0.00010998,2]
[335864565,1724548246861,-200.879503,0.00010998,2]
[335864566,1724548247039,-200.879503,0.00010998,2]
[335864567,1724548247049,-500.0,0.00010998,2]
[335864568,1724548247059,-500.0,0.00010998,2]
[335864569,1724548247068,-151.0,0.00010998,2]
[335864570,1724548247078,-500.0,0.00010998,2]
[335864571,1724548247087,-500.0,0.00010998,2]
[335864572,1724548247097,-151.0,0.00010998,2]
[335864573,1724548247106,-1258.156572,0.00010998,2]
[335864574,1724548247115,-151.0,0.00010998,2]
[335864575,1724548247124,-99.1690915,0.00010998,2]
[335864576,1724548247136,-51.8309085,0.00010998,2]
[335864577,1724548247145,-151.0,0.00010998,2]
[335864578,1724548247155,-1258.156572,0.00010998,2]
[335864579,1724548247167,-151.0,0.00010998,2]
[335864580,1724548247176,-500.0,0.00010998,2]
[335864581,1724548247185,-151.0,0.00010998,2]
[335864582,1724548247195,-151.0,0.00010998,2]
[335864583,1724548247205,-151.0,0.00010998,2]
[335864584,1724548247214,-151.0,0.00010998,2]
[335864585,1724548247223,-151.0,0.00010998,2]
[335864586,1724548247232,-151.0,0.00010998,2]
[335864587,1724548247243,-151.0,0.00010998,2]
[335864588,1724548247252,-151.0,0.00010998,2]
[335864589,1724548247262,-151.0,0.00010998,2]
[335864590,1724548247272,-258.517692,0.00010998,2]
[335864591,1724548247281,-151.0,0.00010998,2]
[335864592,1724548247292,-151.0,0.00010998,2]
[335864593,1724548247302,-258.517692,0.00010998,2]
[335864594,1724548247311,-299.925456,0.00010998,2]
[335864595,1724548247321,-500.0,0.00010998,2]
[335864596,1724548247331,-204.560745,0.00010998,2]
[335864597,1724548247340,-500.0,0.00010998,2]
[335864598,1724548247350,-500.0,0.00010998,2]
[335864599,1724548247360,-500.0,0.00010998,2]
[335864600,1724548247370,-500.0,0.00010998,2]
[335864601,1724548247379,-297.464046,0.00010998,2]
[335864602,1724548247389,-297.464046,0.00010998,2]
[335864603,1724548247398,-297.464046,0.00010998,2]
[335864604,1724548247407,-297.464046,0.00010998,2]
[335864605,1724548247420,-500.0,0.00010998,2]
[335864606,1724548247429,-500.0,0.00010998,2]
[335864607,1724548247439,-151.0,0.00010998,2]
[335864608,1724548247448,-151.0,0.00010998,2]
[335864609,1724548247458,-151.0,0.00010998,2]
[335864610,1724548247467,-151.0,0.00010998,2]
[335864611,1724548247477,-151.0,0.00010998,2]
[335864612,1724548247486,-151.0,0.00010998,2]
[335864613,1724548247496,-171.877914,0.00010998,2]
[335864614,1724548247506,-171.877914,0.00010998,2]
[335864615,1724548247515,-500.0,0.00010998,2]
[335864616,1724548247525,-171.877914,0.00010998,2]
[335864617,1724548247535,-171.877914,0.00010998,2]
[335864618,1724548247544,-500.0,0.00010998,2]
[335864619,1724548247553,-500.0,0.00010998,2]
[335864620,1724548247563,-628.59,0.00010998,2]
[335864621,1724548247573,-500.00000075,0.00010998,2]
[335864622,1724548247587,-500.0,0.00010998,2]
[335864623,1724548247597,-500.0,0.00010998,2]
[335864624,1724548247606,-266.098235,0.00010998,2]
[335864625,1724548247616,-500.0,0.00010998,2]
[335864626,1724548247625,-151.0,0.00010998,2]
[335864627,1724548247637,-151.0,0.00010998,2]
[335864628,1724548247647,-151.0,0.00010998,2]
[335864629,1724548247656,-603.08,0.00010998,2]
[335864630,1724548247670,-500.0,0.00010998,2]
[335864631,1724548247679,-500.0,0.00010998,2]
[335864632,1724548247688,-500.0,0.00010998,2]
[335864633,1724548247698,-500.0,0.00010998,2]
[335864634,1724548247707,-500.0,0.00010998,2]
[335864635,1724548247716,-173.996172,0.00010998,2]
[335864636,1724548247726,-173.996172,0.00010998,2]
[335864637,1724548247737,-173.996172,0.00010998,2]
[335864638,1724548247746,-173.996172,0.00010998,2]
[335864639,1724548247755,-500.0,0.00010998,2]
[335864640,1724548247765,-319.97699,0.00010998,2]
[335864641,1724548247774,-319.97699,0.00010998,2]
[335864642,1724548247784,-319.97699,0.00010998,2]
[335864643,1724548247793,-151.0,0.00010998,2]
[335864644,1724548247802,-151.0,0.00010998,2]
[335864645,1724548247811,-151.0,0.00010998,2]
[335864646,1724548247822,-500.0,0.00010998,2]
[335864647,1724548247832,-500.0,0.00010998,2]
[335864648,1724548247841,-500.0,0.00010998,2]
[335864649,1724548247851,-151.0,0.00010998,2]
[335864650,1724548247860,-500.0,0.00010998,2]
[335864651,1724548247869,-609.03,0.00010998,2]
[335864652,1724548247879,-500.0,0.00010998,2]
[335864653,1724548247889,-171.227381,0.00010998,2]
[335864654,1724548247898,-171.227381,0.00010998,2]
[335864655,1724548247908,-500.0,0.00010998,2]